bitfinex-derivatives/quotes_ETHF0:USTF0_20260203
["timestamp","ask_amount","ask_price","bid_price","bid_amount"]
[1770155318756,2.49620121,2291.3,2290.1,2.562]
[1770155319946,2.49620121,2291.3,2290.0,0.21861]
[1770155320151,2.49620121,2291.3,2290.1,4.746]
[1770155320558,2.49620121,2291.3,2290.3,0.01056505]
[1770155320761,2.49620121,2291.5,2290.5,0.01056505]
[1770155320962,2.49620121,2291.5,2290.6,2.562]
[1770155322057,2.71467121,2291.5,2290.2,4.7959459]
[1770155322257,2.71467121,2291.5,2290.2,2.6119459]
[1770155322459,2.71467121,2291.5,2290.3,2.59542657]
[1770155322657,2.71467121,2291.5,2290.3,2.562]
[1770155323958,2.49620121,2291.5,2290.4,2.562]
[1770155326260,2.49620121,2291.4,2290.5,2.562]
[1770155327767,2.49620121,2291.4,2290.1,2.6119459]
[1770155327963,2.49620121,2291.3,2290.0,2.8305459]
[1770155328161,2.49620121,2291.3,2290.1,2.562]
[1770155328359,2.49620121,2291.2,2290.1,5.1739459]
[1770155329161,2.49620121,2291.2,2290.2,0.07621628]
[1770155329464,2.49620121,2291.2,2290.2,2.68816218]
[1770155330570,2.49620121,2291.2,2290.3,2.562]
[1770155330771,2.49620121,2291.2,2290.2,2.6119459]
[1770155331871,2.49620121,2291.2,2290.1,2.6119459]
[1770155332073,2.48686955,2291.1,2290.1,2.562]
[1770155332375,2.48686955,2291.1,2290.1,5.1739459]
[1770155334674,2.48656863,2291.0,2290.1,5.1739459]
[1770155334876,2.48656863,2290.9,2290.1,5.1739459]
[1770155335174,2.48656863,2290.9,2290.1,2.6119459]
[1770155335368,2.48656863,2290.9,2290.1,5.1739459]
[1770155340173,2.57590422,2291.1,2290.1,5.19601762]
[1770155340379,5.0630101,2291.2,2290.3,0.02207172]
[1770155340878,5.0630101,2291.4,2290.5,0.02207172]
[1770155341070,5.06797841,2291.6,2290.7,0.02207172]
[1770155341269,2.48710588,2291.5,2290.7,0.02207172]
[1770155341478,2.47199681,2291.4,2290.5,5.1739459]
[1770155341777,2.47199681,2291.2,2290.5,2.562]
[1770155341980,2.47199681,2291.2,2290.2,2.6119459]
[1770155342178,2.47199681,2291.1,2290.2,2.6119459]
[1770155342472,2.47199681,2291.0,2290.3,2.562]
[1770155342674,2.47199681,2290.9,2289.9,2.6119459]
[1770155342978,2.47199681,2290.7,2289.7,2.6119459]
[1770155343180,5.04790103,2290.7,2289.6,2.6119459]
[1770155343480,2.4585743,2290.6,2289.6,2.562]
[1770155343981,2.4585743,2290.6,2289.5,2.562]
[1770155344874,2.4585743,2290.6,2289.4,2.83435972]
[1770155345079,2.4585743,2290.6,2288.2,0.07913488]
[1770155345080,2.30169283,2289.7,2288.2,0.07913488]
[1770155345280,2.30169283,2289.5,2288.3,2.49428911]
[1770155346083,2.30697419,2289.5,2288.3,0.00394165]
[1770155346281,2.30169283,2289.3,2288.3,0.00394165]
[1770155348083,2.30169283,2289.3,2288.3,2.49823076]
[1770155348786,0.00528136,2289.5,2288.3,2.49823076]
[1770155349087,2.30697419,2289.5,2288.4,2.563]
[1770155349285,2.30697419,2289.5,2288.3,2.49823076]
[1770155349485,2.30697419,2289.5,2288.4,2.49428911]
[1770155350385,2.30697419,2289.5,2288.3,0.00394165]
[1770155352080,2.52563419,2289.5,2288.3,0.00394165]
[1770155352388,2.30169283,2289.1,2287.5,2.49428911]
[1770155352887,2.52039283,2289.1,2287.5,2.49428911]
[1770155353185,2.30169283,2288.9,2287.5,0.00084844]
[1770155353686,2.563,2289.2,2286.9,2.49428911]
[1770155353687,2.30169283,2288.5,2286.9,2.49428911]
[1770155354283,2.30169283,2288.4,2286.9,2.49428911]
[1770155356284,2.52045283,2288.4,2286.6,2.49428911]
[1770155356885,2.30169283,2288.4,2286.8,2.49428911]
[1770155357684,2.30169283,2288.4,2287.0,2.49428911]
[1770155358181,2.30169283,2288.0,2286.4,2.49428911]
[1770155358382,2.30169283,2287.6,2286.4,2.49428911]
[1770155358581,0.005437,2287.6,2286.4,2.49915362]
[1770155358779,2.30712983,2287.6,2286.5,2.49428911]
[1770155359387,2.30712983,2287.6,2286.4,2.49915362]
[1770155360785,2.30712983,2287.6,2286.6,2.42878359]
[1770155360986,2.30712983,2287.6,2286.4,0.00486451]
[1770155361193,2.30712983,2287.6,2286.4,2.4336481]
[1770155362695,0.005437,2287.6,2286.4,2.6525881]
[1770155363199,2.44679101,2287.6,2286.4,2.4336481]
[1770155363396,2.44679101,2287.6,2286.5,2.42878359]
[1770155364698,2.44679101,2287.6,2286.4,0.00486451]
[1770155366295,2.44135401,2287.4,2286.4,0.00486451]
[1770155367001,2.66021401,2287.4,2286.4,0.00486451]
[1770155369399,2.44135401,2287.4,2286.4,2.6525981]
[1770155370397,2.44135401,2287.4,2286.4,2.4336481]
[1770155373505,0.005437,2287.6,2286.6,2.42878359]
[1770155373710,0.005437,2287.6,2286.8,2.42878359]
[1770155374104,1.84679101,2287.7,2286.8,2.42878359]
[1770155375009,1.85117149,2287.7,2286.8,2.42878359]
[1770155376113,1.85117149,2287.7,2286.4,0.00486451]
[1770155376303,2.07000149,2287.7,2286.4,0.00486451]
[1770155377800,2.07000149,2287.7,2286.4,2.4336481]
[1770155378402,2.17144373,2287.0,2285.7,3.90950334]
[1770155378603,2.44135401,2286.9,2285.5,0.21904]
[1770155378806,2.44135401,2286.9,2285.7,2.42878359]
[1770155379010,2.44135401,2286.9,2286.1,2.42878359]
[1770155379400,2.44135401,2286.9,2286.3,3.90640531]
[1770155379600,2.44135401,2286.9,2286.1,3.91100626]
[1770155379805,2.44135401,2287.2,2286.1,0.00460095]
[1770155380003,2.44135401,2287.2,2286.1,2.57060095]
[1770155380205,2.44135401,2287.2,2286.2,3.90640531]
[1770155380609,2.44135401,2287.5,2286.1,2.57060095]
[1770155380812,2.44135401,2287.5,2286.4,3.90640531]
[1770155381002,2.44135401,2287.5,2286.1,2.78958095]
[1770155381207,2.44573449,2287.7,2286.6,3.90640531]
[1770155381409,2.44573449,2287.7,2286.5,3.90640531]
[1770155381807,2.44573449,2287.7,2286.7,3.90640531]
[1770155382002,2.44573449,2287.7,2286.6,2.42878359]
[1770155382207,2.44573449,2287.7,2286.7,3.90640531]
[1770155382607,2.44573449,2287.7,2286.8,3.90640531]
[1770155382809,0.00438048,2287.7,2286.9,6.3351889]
[1770155383110,2.44135401,2288.2,2287.3,3.90640531]
[1770155383309,2.44135401,2288.2,2287.2,2.42878359]
[1770155383710,2.44135401,2288.2,2287.3,3.90640531]
[1770155383910,2.44135401,2288.2,2286.9,4.99478359]
[1770155384110,2.44135401,2288.0,2286.7,2.566]
[1770155384410,2.44135401,2287.9,2286.7,2.42878359]
[1770155384912,2.44135401,2287.9,2286.6,2.566]
[1770155385209,2.44135401,2287.9,2286.4,4.61578359]
[1770155385210,2.44135401,2287.9,2286.5,4.99478359]
[1770155385411,2.44135401,2287.9,2286.5,8.9011889]
[1770155386209,2.44135401,2287.9,2286.8,2.42878359]
[1770155386409,2.44135401,2287.9,2287.0,2.42878359]
[1770155386609,2.44135401,2287.9,2286.8,2.42878359]
[1770155386805,2.44135401,2287.9,2286.6,3.90640531]
[1770155387011,2.44135401,2287.9,2286.7,6.3351889]
[1770155387212,2.44135401,2287.9,2286.8,2.42878359]
[1770155387607,2.44135401,2287.9,2286.8,6.3351889]
[1770155388818,2.44135401,2287.9,2286.8,2.42878359]
[1770155389012,2.44135401,2287.9,2286.5,2.42878359]
[1770155389217,2.44135401,2287.8,2286.6,2.566]
[1770155389413,2.44135401,2287.8,2286.5,6.3351889]
[1770155389622,2.44135401,2287.7,2286.6,6.47240531]
[1770155389818,2.44135401,2287.7,2286.7,3.90640531]
[1770155390313,2.44135401,2287.7,2286.2,7.6368517]
[1770155390515,2.44135401,2287.7,2285.8,7.94370928]
[1770155390516,2.47360773,2287.4,2286.1,2.57060095]
[1770155390715,2.47360773,2287.4,2286.2,2.37238512]
[1770155390910,2.47360773,2287.4,2286.4,3.90640531]
[1770155391112,2.47360773,2287.4,2286.5,3.90640531]
[1770155391520,2.47360773,2287.4,2286.6,3.90640531]
[1770155391818,2.47360773,2287.4,2286.5,3.90640531]
[1770155392221,2.47360773,2287.4,2286.7,3.90640531]
[1770155392423,2.47360773,2287.7,2286.8,6.27879043]
[1770155392619,2.47360773,2288.0,2286.9,2.37238512]
[1770155392820,2.47360773,2288.0,2287.0,3.90640531]
[1770155393019,2.47360773,2288.0,2287.1,3.90640531]
[1770155393420,2.47360773,2288.0,2287.2,3.90640531]
[1770155393619,2.47360773,2288.0,2287.1,3.90640531]
[1770155394020,2.47360773,2288.0,2287.2,3.90640531]
[1770155394218,2.47360773,2288.0,2287.1,6.27879043]
[1770155394515,2.35473374,2288.2,2287.4,3.90640531]
[1770155394720,2.35473374,2288.2,2287.5,3.90640531]
[1770155394921,2.35473374,2288.2,2287.4,3.90640531]
[1770155395319,2.35473374,2288.2,2287.5,3.90640531]
[1770155395621,2.35473374,2288.2,2286.9,2.58867992]
[1770155395822,2.35473374,2288.2,2287.1,3.90640531]
[1770155396724,2.35473374,2288.2,2286.9,2.566]
[1770155397226,2.35473374,2288.2,2286.8,2.566]
[1770155397425,2.35044693,2288.1,2286.7,2.36977992]
[1770155397925,2.35044693,2287.8,2286.4,2.36977992]
[1770155398323,2.35044693,2287.8,2286.3,2.566]
[1770155398324,2.35044693,2287.8,2286.5,6.27618523]
[1770155398623,2.35044693,2287.8,2286.6,6.27618523]
[1770155399126,2.35044693,2287.8,2286.3,5.15473992]
[1770155399328,2.35044693,2287.8,2286.3,9.06114523]
[1770155399625,4.88541115,2287.2,2286.1,0.00460095]
[1770155399826,2.35044693,2287.0,2286.1,0.00022047]
[1770155401018,2.35044693,2287.0,2286.3,3.90640531]
[1770155401328,2.35044693,2287.4,2286.5,3.90640531]
[1770155401625,2.35044693,2287.4,2286.4,3.90640531]
[1770155401826,2.35044693,2287.8,2286.6,2.58870992]
[1770155402017,2.35044693,2287.8,2286.9,2.36977992]
[1770155402218,2.35044693,2287.8,2287.2,3.90640531]
[1770155402418,2.35044693,2288.1,2286.8,0.21891]
[1770155402631,2.56932693,2287.2,2285.7,5.20806811]
[1770155402828,2.35044693,2286.9,2285.5,2.36977992]
[1770155403031,2.35044693,2286.8,2285.5,2.36977992]
[1770155403930,2.35044693,2286.8,2286.0,3.90640531]
[1770155404323,2.35044693,2286.8,2286.2,3.90640531]
[1770155404523,2.35044693,2286.8,2286.1,3.90640531]
[1770155404927,2.53496422,2287.3,2286.4,3.90640531]
[1770155404928,2.35044693,2287.1,2286.4,3.90640531]
[1770155405123,2.35044693,2287.1,2285.8,5.15477992]
[1770155405327,2.35044693,2287.1,2286.1,3.90640531]
[1770155405831,2.35044693,2287.1,2285.6,2.36977992]
[1770155406034,2.35044693,2287.1,2285.7,3.90640531]
[1770155407832,2.35044693,2287.1,2285.7,6.27618523]
[1770155408032,2.35044693,2287.1,2285.9,3.90640531]
[1770155408232,2.35044693,2287.1,2285.8,6.27618523]
[1770155408428,2.35044693,2287.1,2286.0,3.90640531]
[1770155408732,2.35044693,2287.1,2286.1,3.90640531]
[1770155408931,2.35044693,2287.1,2285.8,6.27618523]
[1770155410323,2.35044693,2287.1,2285.5,2.37359873]
[1770155410524,2.35044693,2286.8,2285.5,2.37359873]
[1770155410726,2.35044693,2286.6,2285.5,2.37359873]
[1770155411134,2.35044693,2286.6,2285.7,3.90640531]
[1770155411630,2.35044693,2286.6,2285.8,3.90640531]
[1770155411833,2.35044693,2286.6,2285.5,3.91022412]
[1770155412231,2.35044693,2286.6,2285.5,0.00381881]
[1770155412431,2.35044693,2286.6,2285.6,3.90640531]
[1770155412832,2.35044693,2286.6,2285.7,3.90640531]
[1770155413229,2.35044693,2286.6,2285.8,3.90640531]
[1770155413428,2.35044693,2286.6,2285.5,2.37359873]
[1770155413630,2.35044693,2286.6,2285.9,3.90640531]
[1770155414131,2.35044693,2286.6,2286.1,3.90640531]
[1770155414333,2.35044693,2286.6,2285.9,3.90640531]
[1770155414630,2.35044693,2286.6,2285.8,3.90640531]
[1770155414828,2.35044693,2286.6,2285.5,0.00381881]
[1770155415029,2.35044693,2286.4,2285.5,0.00381881]
[1770155415225,2.57493983,2286.4,2284.7,2.36977992]
[1770155415425,2.35044693,2286.0,2284.7,2.36977992]
[1770155415626,2.35044693,2286.0,2284.8,2.36977992]
[1770155415929,0.21897,2286.3,2284.3,2.567]
[1770155415930,2.35044693,2286.3,2285.1,2.36977992]
[1770155416136,2.35044693,2286.3,2285.6,3.90640531]
[1770155416537,2.35044693,2286.3,2285.8,3.90640531]
[1770155416737,2.35044693,2286.3,2285.7,3.90640531]
[1770155417230,2.35044693,2286.3,2285.9,3.90640531]
[1770155417436,2.35044693,2286.3,2285.7,3.90640531]
[1770155417834,2.35044693,2286.3,2285.9,3.90640531]
[1770155418138,2.35044693,2286.3,2285.7,3.90640531]
[1770155418537,2.35044693,2286.3,2285.9,3.90640531]
[1770155418736,2.35044693,2286.3,2285.7,3.90640531]
[1770155419137,2.35044693,2286.3,2285.9,3.90640531]
[1770155419337,2.35044693,2286.3,2285.7,3.90640531]
[1770155419836,2.35044693,2286.3,2285.9,3.90640531]
[1770155420037,0.0055429,2286.4,2285.9,3.90640531]
[1770155420236,0.0055429,2286.4,2286.1,3.90640531]
[1770155420436,4.53844693,2286.5,2285.8,3.90640531]
[1770155420637,4.53844693,2286.5,2285.9,3.90640531]
[1770155420833,2.188,2286.5,2285.6,2.36977992]
[1770155421138,2.188,2286.5,2286.0,3.90640531]
[1770155421437,2.29505677,2287.3,2286.2,3.90640531]
[1770155421631,2.29505677,2287.3,2285.8,2.42082213]
[1770155421834,2.29505677,2287.3,2285.9,3.90640531]
[1770155422538,2.30005662,2287.3,2285.9,3.90640531]
[1770155422937,2.30005662,2287.3,2286.0,3.90640531]
[1770155423137,2.30005662,2287.3,2285.9,3.90640531]
[1770155423537,2.30005662,2287.3,2286.0,3.90640531]
[1770155424040,2.29505677,2287.1,2285.4,2.42082213]
[1770155424245,2.29505677,2286.9,2285.4,2.42082213]
[1770155424440,2.29505677,2286.9,2285.8,2.42082213]
[1770155425044,2.29505677,2286.9,2285.8,3.90640531]
[1770155425242,2.29505677,2286.9,2285.7,2.42082213]
[1770155425435,2.29505677,2286.9,2285.9,3.90640531]
[1770155425641,2.29505677,2286.9,2286.1,3.90640531]
[1770155425937,4.48305677,2287.6,2286.8,6.32722744]
[1770155426143,4.48305677,2287.6,2286.8,2.42082213]
[1770155426340,4.48305677,2287.6,2287.1,3.90640531]
[1770155426736,2.29505677,2287.5,2286.2,2.42082213]
[1770155427040,2.29976416,2287.5,2286.4,6.32722744]
[1770155427241,2.29976416,2287.5,2286.5,3.90640531]
[1770155427541,2.29976416,2287.5,2286.7,3.90640531]
[1770155427940,0.00470739,2287.5,2287.2,3.90640531]
[1770155428142,2.29505677,2287.8,2287.0,3.90640531]
[1770155428338,2.29505677,2287.8,2286.8,2.41173977]
[1770155428538,2.29505677,2287.8,2287.0,3.90640531]
[1770155428738,2.29505677,2287.8,2286.8,3.90640531]
[1770155429144,2.29970435,2287.8,2287.1,3.90640531]
[1770155429337,2.29970435,2287.8,2286.9,3.90640531]
[1770155429538,2.29970435,2287.8,2287.0,3.90640531]
[1770155429738,2.29970435,2287.8,2287.2,3.90640531]
[1770155429938,2.29970435,2287.8,2287.0,3.90640531]
[1770155430139,2.29970435,2287.8,2287.1,3.90640531]
[1770155430538,2.29970435,2287.8,2287.3,3.90640531]
[1770155430743,2.29970435,2287.8,2287.1,3.90640531]
[1770155431139,2.29970435,2287.8,2287.3,3.90640531]
[1770155431342,2.29970435,2287.8,2287.1,3.90640531]
[1770155431743,2.29970435,2287.8,2287.3,3.90640531]
[1770155432042,2.29970435,2287.8,2287.1,3.90640531]
[1770155432438,2.29970435,2287.8,2287.3,3.90640531]
[1770155432742,2.29970435,2287.8,2287.1,3.90640531]
[1770155432942,2.29970435,2287.8,2286.9,3.90640531]
[1770155433244,2.29970435,2287.8,2286.8,3.90640531]
[1770155433445,2.29970435,2287.8,2286.9,3.90640531]
[1770155433746,0.00464758,2287.8,2287.1,5.87229796]
[1770155434043,0.00464758,2287.8,2287.1,1.96589265]
[1770155434243,2.29970435,2287.8,2287.3,3.90640531]
[1770155434539,2.29505677,2288.1,2287.4,3.90640531]
[1770155434843,2.29505677,2288.1,2287.2,3.90640531]
[1770155435246,2.29505677,2288.1,2287.3,3.90640531]
[1770155435439,2.29902106,2288.1,2287.0,6.01626561]
[1770155435744,2.29902106,2288.1,2287.1,6.01626561]
[1770155436343,2.29902106,2288.1,2287.3,3.90640531]
[1770155436544,2.29902106,2288.1,2287.4,3.90640531]
[1770155436847,2.29902106,2288.1,2287.3,3.90640531]
[1770155437444,2.29902106,2288.1,2287.4,3.90640531]
[1770155437740,2.29902106,2288.1,2286.5,2.14753573]
[1770155437741,2.29505677,2288.0,2286.5,2.14753573]
[1770155437939,2.29505677,2288.0,2286.5,6.05394104]
[1770155438134,2.29505677,2287.9,2286.6,3.90640531]
[1770155438544,2.29505677,2287.9,2286.7,2.14753573]
[1770155438744,2.51386677,2287.9,2286.7,6.05394104]
[1770155438945,2.51386677,2287.9,2287.0,3.90640531]
[1770155439340,2.51386677,2287.9,2287.1,3.90640531]
[1770155439546,2.51386677,2287.9,2287.0,3.90640531]
[1770155439942,2.51386677,2287.9,2287.1,3.90640531]
[1770155440246,2.51386677,2287.9,2287.0,3.90640531]
[1770155440441,2.51386677,2287.9,2286.3,2.13371616]
[1770155440648,2.29505677,2287.7,2286.3,2.13371616]
[1770155440848,2.29505677,2287.5,2286.4,3.90640531]
[1770155441248,2.29505677,2287.5,2286.3,2.13371616]
[1770155441249,2.29505677,2287.5,2286.6,3.90640531]
[1770155441640,2.29505677,2287.5,2286.8,3.90640531]
[1770155441844,2.29505677,2287.5,2286.3,2.13371616]
[1770155441845,2.29505677,2287.5,2287.0,3.90640531]
[1770155442048,2.566,2287.6,2286.7,2.13116237]
[1770155442246,2.566,2287.6,2286.9,3.90640531]
[1770155442446,2.29505677,2287.6,2287.1,3.90640531]
[1770155442648,2.29505677,2287.6,2287.2,3.90640531]
[1770155443148,2.29505677,2287.6,2286.3,2.42082213]
[1770155444449,2.29505677,2287.4,2286.2,0.00501845]
[1770155444750,2.29505677,2287.2,2286.2,0.00501845]
[1770155445744,2.29505677,2287.0,2286.2,0.00501845]
[1770155446653,2.566,2287.3,2286.2,2.42584058]
[1770155447151,2.188,2287.5,2286.2,2.42584058]
[1770155447650,4.48305677,2287.5,2286.2,2.42584058]
[1770155449654,2.188,2287.5,2286.2,2.42584058]
[1770155451950,2.188,2287.5,2286.3,2.28502038]
[1770155454058,2.43102057,2287.4,2286.3,2.28502038]
[1770155455061,2.188,2287.5,2286.5,2.34027986]
[1770155456161,2.188,2287.5,2286.6,2.34027986]
[1770155456558,2.188,2287.5,2286.7,2.34027986]
[1770155458361,2.566,2287.7,2286.7,2.34027986]
[1770155460162,3.121,2287.8,2286.7,2.34027986]
[1770155460364,2.39102488,2288.0,2286.9,2.34027986]
[1770155462771,4.43996429,2288.1,2286.9,2.34027986]
[1770155462972,2.39102488,2288.0,2286.9,2.34027986]
[1770155463173,2.60983488,2287.9,2286.6,4.95740999]
[1770155463370,2.39102488,2287.7,2286.7,2.34027986]
[1770155463776,4.93308948,2288.0,2286.7,2.34027986]
[1770155463971,2.39102488,2287.9,2286.7,2.34027986]
[1770155464372,2.39102488,2287.9,2286.8,2.34027986]
[1770155469373,2.5420646,2288.0,2287.0,2.34027986]
[1770155469570,2.39102488,2288.9,2287.7,0.21883]
[1770155469775,6.3787781,2289.4,2287.9,2.34027986]
[1770155469776,4.93308948,2289.4,2287.9,2.34027986]
[1770155469975,4.93308948,2289.4,2288.1,2.34027986]
[1770155470174,2.39102488,2289.4,2288.2,2.34027986]
[1770155470781,2.60973488,2289.0,2288.2,0.0037387]
[1770155470977,2.39102488,2288.6,2287.2,2.34027986]
[1770155471275,2.753,2288.9,2287.7,2.34027986]
[1770155471479,2.753,2288.9,2287.9,2.34027986]
[1770155471672,2.39102488,2289.2,2287.9,2.34027986]
[1770155471976,2.39102488,2289.2,2288.0,2.34027986]
[1770155474175,2.39102488,2289.2,2287.9,0.00434462]
[1770155474572,5.15177948,2289.2,2287.9,0.00434462]
[1770155474773,2.39102488,2289.3,2287.9,2.34462448]
[1770155474978,2.39102488,2289.3,2288.0,2.34027986]
[1770155475174,2.39102488,2289.3,2288.0,2.55907986]
[1770155475678,2.39102488,2289.2,2288.0,2.34027986]
[1770155475873,2.39102488,2289.2,2287.9,0.00434462]
[1770155476074,2.39102488,2289.2,2287.9,2.34462448]
[1770155476379,2.39102488,2288.6,2287.9,0.00434462]
[1770155476580,2.39102488,2288.6,2287.4,2.34027986]
[1770155477477,2.39102488,2288.6,2287.4,2.34561238]
[1770155478677,4.46,2288.8,2287.4,2.34561238]
[1770155478880,2.39102488,2288.9,2287.6,2.34027986]
[1770155479077,2.54604852,2289.4,2287.9,2.34027986]
[1770155479078,2.39102488,2289.2,2287.9,2.34027986]
[1770155480073,2.39102488,2288.8,2287.5,2.34027986]
[1770155480978,2.3204902,2288.7,2287.5,2.34027986]
[1770155482685,2.565,2288.8,2287.5,2.34027986]
[1770155483385,2.3204902,2289.0,2287.5,2.55912986]
[1770155483585,2.3204902,2289.0,2287.6,2.48519506]
[1770155484186,2.3204902,2289.0,2287.6,2.70402506]
[1770155484780,2.3204902,2289.0,2287.8,2.48519506]
[1770155487089,2.3204902,2289.3,2287.8,2.70401506]
[1770155487386,2.3204902,2289.1,2287.8,2.48519506]
[1770155489179,2.3204902,2289.0,2287.5,2.48519506]
[1770155489380,2.3204902,2288.9,2287.5,2.48519506]
[1770155490382,2.3204902,2288.7,2287.5,2.48519506]
[1770155491186,5.8332202,2288.7,2287.5,2.48519506]
[1770155491485,2.3204902,2288.6,2287.5,2.48519506]
[1770155491882,2.5420646,2289.2,2288.0,2.48519506]
[1770155492089,2.3204902,2289.3,2288.0,2.70399506]
[1770155492282,2.3204902,2289.3,2288.2,2.48519506]
[1770155493088,0.00398392,2289.4,2288.2,2.48519506]
[1770155493490,2.32447412,2289.4,2288.2,2.48519506]
[1770155494087,2.32447412,2289.4,2287.5,2.48519506]
[1770155494088,2.3204902,2288.7,2287.5,2.48519506]
[1770155494390,2.3204902,2288.6,2287.5,2.48519506]
[1770155494594,3.629,2288.7,2287.5,2.48519506]
[1770155494795,2.3204902,2288.9,2287.6,2.48519506]
[1770155497298,2.3204902,2288.5,2287.4,2.49052758]
[1770155497692,2.5392402,2288.5,2287.4,2.49052758]
[1770155498687,0.21877,2288.4,2287.4,2.49052758]
[1770155498896,5.07157644,2288.3,2287.4,0.00533252]
[1770155499195,2.3204902,2288.2,2287.4,0.00533252]
[1770155500394,2.3204902,2288.2,2287.4,2.49052758]
[1770155501792,2.75109624,2288.2,2286.8,2.48519506]
[1770155501991,2.3204902,2288.1,2286.8,2.48519506]
[1770155502891,2.3204902,2288.1,2286.8,2.48999183]
[1770155503997,2.3204902,2287.8,2286.8,2.48999183]
[1770155504298,2.3204902,2287.7,2286.8,2.48999183]
[1770155504495,2.32542808,2287.7,2286.8,2.48999183]
[1770155506798,0.00493788,2287.7,2286.8,2.48999183]
[1770155507101,2.3204902,2288.3,2286.9,2.48519506]
[1770155507291,2.3204902,2288.4,2286.9,2.48519506]
[1770155508199,2.32568972,2288.4,2286.9,2.48519506]
[1770155508498,2.54444972,2288.4,2286.9,2.48519506]
[1770155508700,2.3204902,2288.1,2286.9,2.48519506]
[1770155508904,2.3204902,2288.0,2286.9,2.48519506]
[1770155509698,2.5393002,2287.9,2286.9,2.48519506]
[1770155512003,2.5393002,2287.9,2286.8,0.00479677]
[1770155512004,4.476,2287.8,2286.8,0.00479677]
[1770155512303,2.3943379,2287.7,2286.8,0.00479677]
[1770155513006,2.3943379,2287.7,2286.8,2.29843055]
[1770155516903,2.3943379,2287.7,2286.8,0.00479677]
[1770155518109,2.3943379,2287.7,2286.4,2.28489347]
[1770155518110,2.63799243,2287.6,2286.4,2.28489347]
[1770155518507,2.41915243,2287.4,2286.4,2.28489347]
[1770155519007,2.41915243,2287.4,2286.4,2.28795578]
[1770155520004,2.63801243,2287.4,2286.4,0.00306231]
[1770155520209,4.80847682,2287.4,2286.4,0.00306231]
[1770155520508,4.80847682,2287.4,2285.8,2.28489347]
[1770155520509,2.63807243,2286.8,2285.8,2.28489347]
[1770155520700,4.492,2286.7,2285.8,2.28489347]
[1770155520904,2.753,2287.1,2285.8,2.28489347]
[1770155521302,4.95146867,2287.5,2285.9,2.28489347]
[1770155521303,2.41915243,2287.5,2285.9,2.28489347]
[1770155521507,4.98836298,2287.5,2285.9,2.28844567]
[1770155521706,2.41915243,2287.4,2285.9,2.28844567]
[1770155523110,2.41915243,2287.3,2285.9,2.28844567]
[1770155526219,2.56921055,2287.5,2286.1,2.28489347]
[1770155526421,0.00321055,2287.5,2286.4,2.28489347]
[1770155527021,0.00321055,2287.5,2286.4,4.89657704]
[1770155527222,0.00321055,2287.5,2286.5,2.28489347]
[1770155529525,2.42236298,2287.5,2286.5,2.28489347]
[1770155530224,0.00321055,2287.5,2286.5,2.28489347]
[1770155530416,37.93473316,2287.9,2286.5,2.28489347]
[1770155530417,2.53231624,2288.3,2287.0,2.28489347]
[1770155530819,40.35388559,2288.4,2287.0,2.28489347]
[1770155530820,2.41915243,2288.4,2287.0,2.28489347]
[1770155531423,2.42465763,2288.4,2287.1,2.28489347]
[1770155531918,2.41915243,2288.2,2287.1,2.28489347]
[1770155532123,2.41915243,2288.0,2286.8,2.28489347]
[1770155532519,2.41915243,2287.8,2286.8,2.28489347]
[1770155533420,6.92115243,2287.9,2286.8,2.28489347]
[1770155533619,4.502,2287.9,2286.8,2.28489347]
[1770155533826,5.05080526,2288.3,2286.8,2.50380347]
[1770155533827,7.03931624,2288.3,2286.8,2.50380347]
[1770155534627,7.03931624,2288.3,2286.8,2.28489347]
[1770155534628,2.41915243,2288.2,2286.8,2.28489347]
[1770155534930,2.41915243,2288.1,2286.8,2.28489347]
[1770155536028,2.41915243,2288.0,2286.8,2.28489347]
[1770155537023,44.61219755,2288.3,2286.8,2.28489347]
[1770155537024,6.92615243,2288.3,2286.8,2.28489347]
[1770155537223,6.92615243,2288.3,2287.0,2.28489347]
[1770155537530,6.92615243,2288.3,2287.0,2.50378347]
[1770155540427,2.27291952,2288.2,2287.0,2.28489347]
[1770155541130,2.27291952,2288.1,2287.0,2.28489347]
[1770155543835,2.27291952,2288.0,2287.0,2.28489347]
[1770155546035,2.53231624,2288.2,2287.0,2.28489347]
[1770155546236,9.31223576,2288.3,2287.0,2.28489347]
[1770155546839,2.27291952,2288.2,2287.0,2.28489347]
[1770155549043,2.27291952,2288.1,2287.0,2.28489347]
[1770155552250,4.80523576,2288.1,2287.0,2.28489347]
[1770155552647,2.27291952,2288.0,2287.0,2.28489347]
[1770155554544,2.27291952,2287.9,2286.7,2.34938876]
[1770155554748,2.27291952,2287.7,2286.7,2.34938876]
[1770155554949,4.599,2287.8,2286.7,2.34938876]
[1770155555450,4.599,2287.8,2286.8,2.34938876]
[1770155556048,2.27291952,2287.7,2286.8,2.34938876]
[1770155556246,2.27291952,2287.8,2286.8,2.34938876]
[1770155557646,2.27291952,2287.8,2286.9,2.34938876]
[1770155560648,7.14016142,2287.9,2286.9,2.34938876]
[1770155560954,2.53716142,2288.1,2287.0,2.34938876]
[1770155561249,2.53716142,2288.1,2287.1,2.34938876]
[1770155563354,2.27291952,2287.9,2286.9,4.96592896]
[1770155563550,2.27291952,2287.9,2287.0,2.34938876]
[1770155566253,2.53716142,2288.1,2287.1,2.34938876]
[1770155567448,37.93473316,2288.2,2287.1,2.34938876]
[1770155567449,0.0055052,2288.4,2287.6,2.34938876]
[1770155567654,0.0055052,2288.4,2287.6,2.35468694]
[1770155567857,0.0055052,2288.4,2287.7,2.34938876]
[1770155570056,4.81008094,2288.9,2287.7,2.34938876]
[1770155571050,4.81521566,2288.9,2287.7,2.34938876]
[1770155571256,0.00513472,2288.9,2287.9,2.49600681]
[1770155571452,2.187,2289.3,2288.1,2.49600681]
[1770155571652,2.187,2289.3,2288.3,2.49600681]
[1770155572456,2.19195086,2289.3,2288.3,2.49600681]
[1770155573757,2.30198563,2289.2,2287.9,2.6165402]
[1770155574057,2.30198563,2288.9,2287.6,0.00529818]
[1770155574261,2.52071563,2288.7,2287.6,0.00529818]
[1770155574558,2.42237727,2288.6,2287.6,0.00529818]
[1770155574762,2.42237727,2288.6,2287.6,2.26234475]
[1770155575556,2.42237727,2288.6,2287.6,0.00529818]
[1770155577458,2.42237727,2288.6,2287.0,2.6165402]
[1770155577459,2.42237727,2288.3,2287.0,2.25704657]
[1770155577659,2.42237727,2288.1,2287.0,2.25704657]
[1770155578461,2.42237727,2288.1,2287.0,2.26259819]
[1770155578957,2.42237727,2288.1,2287.0,0.00555162]
[1770155579160,2.42237727,2287.5,2286.1,2.25704657]
[1770155579465,2.42237727,2287.3,2286.1,2.25704657]
[1770155579758,2.42237727,2287.2,2285.8,2.25704657]
[1770155579954,2.42237727,2286.8,2285.5,2.25704657]
[1770155580154,2.42237727,2286.6,2285.5,2.26067011]
[1770155580758,2.42237727,2286.6,2284.7,7.39506811]
[1770155580759,2.64131727,2286.5,2285.1,2.25704657]
[1770155580963,2.42237727,2286.4,2285.1,2.25704657]
[1770155581760,2.42237727,2286.4,2285.1,2.2601286]
[1770155585063,2.42237727,2286.7,2285.1,2.2601286]
[1770155585266,2.42237727,2286.7,2285.3,2.25704657]